Cogmind - Beta 16 *** ADVENTURER MODE // 2025.11.23 @ 18:02:46 Player: BD Result: Destroyed by as-83977 with Assembled Maul Performance ------------- Evolutions (0) 0 Regions Visited (2) 400 Robots Destroyed (8) 40 Value Destroyed (108) 108 Prototype IDs (1) 20 Alien Tech Used (0) 0 Bonus (0) 0 TOTAL SCORE: 568 Bonus ------- None Cogmind --------- Core Integrity 0/250 Matter 296/300 Energy 100/100 System Corruption 5% Temperature Cool (0) Movement Core (100) Ox1 Location -10/Mines Parts ------- > --- POWER (1) -------- (None) > --- PROPULSION (2) --- (None) > --- UTILITY (2) ------ Small Storage Unit > --- WEAPON (2) ------- Light Assault Rifle > --- INVENTORY (8) ---- Light Ion Engine Medium Matter Pod (100) Hardened Light Armor Plating Hardened Light Armor Plating Improved EM Shotgun Peak State ------------ > --- POWER ------------ Ion Engine > --- PROPULSION ------- Aluminum Leg Aluminum Leg > --- UTILITY ---------- Small Storage Unit Hardened Light Armor Plating > --- WEAPON ----------- EM Pulse Gun Improved EM Shotgun > --- INVENTORY -------- Light Ion Engine Compact Wheel Hardened Light Armor Plating Hardened Light Armor Plating Improved EM Shotgun Light Assault Rifle Light Assault Rifle [Rating: 11] Favorites ----------- Power Ion Engine Engine Ion Engine Propulsion Aluminum Leg Leg Aluminum Leg Wheel Compact Wheel Utility Small Storage Unit Storage Small Storage Unit Protection Hardened Light Armor Plating Weapon Improved EM Shotgun Energy Gun Improved EM Shotgun Ballistic Gun Light Assault Rifle Build | -11 -10 -10 ------- Run | Yrd Mat Min Slots Evolved . | . . . Power . | . . . Propulsion . | . . . Utility . | . . . Weapon . | . . . Parts Attached 12 | 6 2 4 Power 1 | 1 . . Engine 1 | 1 . . Core . | . . . Reactor . | . . . Propulsion 4 | 2 . 2 Treads . | . . . Leg 2 | 2 . . Wheel 2 | . . 2 Hover . | . . . Flight . | . . . Utility 2 | 1 1 . Device . | . . . Storage 1 | 1 . . Processor . | . . . Hackware . | . . . Protection 1 | . 1 . Artifact . | . . . Weapon 5 | 2 1 2 Energy Gun 3 | 1 1 1 Energy Cannon . | . . . Ballistic Gun 2 | 1 . 1 Ballistic Cannon . | . . . Launcher . | . . . Special Weapon . | . . . Impact Weapon . | . . . Slashing Weapon . | . . . Piercing Weapon . | . . . Special Melee Weapon . | . . . Unidentified Prototypes 1 | . 1 . Parts Lost 8 | . . 8 Power 1 | . . 1 Propulsion 3 | . . 3 Utility 1 | . . 1 Weapon 3 | . . 3 Highest Loss Streak 5 | . . 5 To Critical Strikes . | . . . Average Backups 6 | 2 7 6 Power . | . 1 1 Propulsion . | . 1 . Utility 2 | . 2 3 Weapon 2 | . 3 2 Tool/Special . | . . . Unused Backups 6 | . 1 5 Power 1 | . . 1 Propulsion . | . . . Utility 3 | . . 3 Weapon 2 | . 1 1 Tool/Special . | . . . Average Slot Usage (%) 93 | . 99 81 Engine 11 | . 14 7 Leg 23 | . 28 13 Wheel 2 | . . 9 Storage 14 | . 14 14 Protection 11 | . 13 8 Energy Gun 24 | . 26 21 Ballistic Gun 3 | . 1 6 Peak Build Rating 11 | 6 11 11 Average Rating 9 | 3 10 8 On Entrance 5 | . 6 11 Avg Prop Armor Cover (%) . | . . . Naked Turns . | . . . Heaviest Build 20 | 13 20 20 Greatest Support 32 | 20 20 32 Greatest Overweight (x) 1 | . . 1 Average Overweight (x) . | . . . Largest Inventory Capacity 8 | 8 8 8 Average Capacity 7 | 6 8 8 Most Carried 8 | 4 8 8 Average Carried 6 | 2 7 6 Final Capacity 8 | 8 8 8 Final Carried 8 | 3 8 5 Class Distribution -------------------- 100% | Mutant Dominant Class ---------------- Mutant | -10/Materials Mutant | -10/Mines Resources | -11 -10 -10 ----------- Run | Yrd Mat Min Matter Collected 316 | 231 64 21 Remotely . | . . . Salvage Created 273 | . 102 171 Parts 12 | . 10 2 Haulers Intercepted . | . . . Recyclers Shooed . | . . . Parts Field Recycled . | . . . Retrieved Matter . | . . . Parts Self-Destructed . | . . . Prevented . | . . . Parts Restored . | . . . Kills | -11 -10 -10 ------- Run | Yrd Mat Min Combat Hostiles Destroyed 8 | . 2 6 Guns 8 | . 2 6 Classes Destroyed 6 | . 3 3 Worker 3 | . 3 . Recycler 1 | . . 1 Watcher 1 | . 1 . Swarmer 2 | . 2 . Demolisher 1 | . . 1 Assembled 5 | . . 5 Best Kill Streak 3 | . 3 3 Combat Bots Only 3 | . 2 3 Max Kills in Single Turn 2 | . 2 2 Gunslinging 1 | . . 1 Exploded . | . . . Melee . | . . . Uniques/NPCs Destroyed . | . . . Combat | -11 -10 -10 -------- Run | Yrd Mat Min Hostile Shots Fired 63 | . 13 50 Missed 10 | . 4 6 Hits 53 | . 9 44 Melee 21 | . . 21 Projectile 32 | . 9 23 AOE 13 | . . 13 Critical Strikes 1 | . . 1 Part Disruptions 1 | . . 1 Damage Taken 1030 | . 50 980 Core 251 | . 8 243 Absorbed by Shields . | . . . Ignored by Resistances 290 | . 18 272 Core Remaining (%) 100 | 100 . . Volleys Fired 26 | . 8 18 Largest 2 | . 2 2 Hottest 85 | . 85 85 Shots Fired 47 | . 15 32 Gun 47 | . 15 32 Cannon . | . . . Launcher . | . . . Special . | . . . Kinetic 13 | . . 13 Thermal . | . . . Explosive . | . . . Electromagnetic 34 | . 15 19 Robot Hit Streak 13 | . 6 13 Robot Miss Streak 3 | . 3 2 Penetration Max . | . . . Secondary Targets 3 | . . 3 Max Gunslinging Chain 1 | . . 1 Shots Hit Robots 36 | . 8 28 Core Hits 27 | . 6 21 Critical Kills . | . . . Critical Parts Destroyed . | . . . Critical Strikes . | . . . Melee Attacks . | . . . Impact . | . . . Slashing . | . . . Piercing . | . . . Sneak Attacks . | . . . Combat Hostiles . | . . . Follow-up Attacks . | . . . Damage Inflicted 574 | . 226 348 Guns 489 | . 145 344 Cannons . | . . . Explosions 81 | . 81 . Melee . | . . . Ramming 4 | . . 4 Kinetic 78 | . . 78 Thermal 81 | . 81 . Explosive . | . . . Electromagnetic 411 | . 145 266 Impact . | . . . Slashing . | . . . Piercing . | . . . Highest Corruption 5 | . . 5 Average Corruption 2 | . . 2 Corruption Purged . | . . . Corruption Blocked . | . . . Effects 1 | . . 1 Energy Discharges 1 | . . 1 Overload Shots . | . . . Overflow Damage 22 | . 22 . Projectiles . | . . . Explosions 22 | . 22 . Melee . | . . . Knockbacks . | . . . Impact . | . . . Kinetic . | . . . Secondary . | . . . Self-Inflicted Damage 2 | . . 2 Shots . | . . . Rammed 1 | . . 1 Targets Rammed 2 | . 1 1 Kicked 1 | . 1 . Crushed . | . . . Highest Temperature 255 | . 156 255 Average Temperature 88 | . 55 114 Received Heat Transfer 80 | . . 80 Effects 1 | . . 1 Energy Bleed 1 | . . 1 Siege Activations . | . . . Martial Activations . | . . . Shielding Activations . | . . . Robots Disrupted . | . . . Combat Hostiles . | . . . Robots Corrupted . | . . . Combat Hostiles . | . . . Parts Fried . | . . . Impact Corruptions . | . . . Robots Melted . | . . . Combat Hostiles . | . . . Parts Melted . | . . . Heat Transferred 50 | . 50 . Parts Sabotaged . | . . . Parts Stolen . | . . . Parts Stripped . | . . . Power Chain Reactions 2 | . 2 . Alert | -11 -10 -10 ------- Run | Yrd Mat Min Maximum Alert Level . | . . . Low Security (%) 100 | 100 100 100 Level 1 . | . . . Level 2 . | . . . Level 3 . | . . . Level 4 . | . . . Level 5 . | . . . High Security . | . . . Max Security . | . . . Peak Influence 55 | . 55 35 Initial . | . . . Average 8 | . 9 9 Influence Increases 119 | . 84 35 Destroy 0b10 Robot/C 60 | . 40 20 Destroy 0b10 Robot/NC 25 | . 20 5 Destroy Leader 22 | . 12 10 Disable Machine 9 | . 9 . Destroy Structure 3 | . 3 . Influence Decreases 119 | . 84 35 Time Decay 104 | . 84 20 Lost Part 15 | . . 15 Squads Dispatched . | . . . Investigation . | . . . Extermination . | . . . Reinforcement . | . . . Assault . | . . . Garrison . | . . . Intercept . | . . . Searches Triggered . | . . . Construction Impeded . | . . . Haulers Reinforced . | . . . Active Scanning Responses . | . . . Cargo Convoy Interrupts . | . . . Stealth | -11 -10 -10 --------- Run | Yrd Mat Min Distress Signals . | . . . Communications Jammed . | . . . Distress Signals . | . . . Times Spotted 30 | . 5 25 Peak Tracking Total 20 | . 3 20 Tactical Retreats 1 | . . 1 Traps | -11 -10 -10 ------- Run | Yrd Mat Min Traps Triggered . | . . . Indirectly . | . . . Trap Hack Attempts . | . . . Triggered . | . . . Disarmed . | . . . Reprogrammed . | . . . Reused . | . . . Traps Extracted . | . . . Installed . | . . . Triggered . | . . . Machines | -11 -10 -10 ---------- Run | Yrd Mat Min Machines Disabled 1 | . 1 . Max in Single Turn 1 | . 1 . Machines Repaired . | . . . Machines Dismantled . | . . . Machines Sabotaged . | . . . Overloaded Fab Kills . | . . . Hacking | -11 -10 -10 --------- Run | Yrd Mat Min Machines Accessed . | . . . Terminals . | . . . Fabricators . | . . . Repair Stations . | . . . Recycling Units . | . . . Scanalyzers . | . . . Garrison Access . | . . . Total Hacks . | . . . Successful . | . . . Failed . | . . . Catastrophic . | . . . Database Lockouts . | . . . Manual . | . . . Terminals . | . . . Fabricators . | . . . Repair Stations . | . . . Recycling Units . | . . . Scanalyzers . | . . . Garrison Access . | . . . Terminal Hacks . | . . . Fabricator Hacks . | . . . Repair Station Hacks . | . . . Recycling Unit Hacks . | . . . Scanalyzer . | . . . Garrison Access Hacks . | . . . Unauthorized Hacks . | . . . Terminals . | . . . Fabricators . | . . . Repair Stations . | . . . Recycling Units . | . . . Scanalyzers . | . . . Garrison Access . | . . . Data Cores Recovered . | . . . Used . | . . . Hacking Detections . | . . . Full Trace Events . | . . . Feedback Events . | . . . Feedback Blocked . | . . . Robot Schematics Acquired . | . . . Robots Built . | . . . Authchips . | . . . Time . | . . . Total Robot Build Rating . | . . . Part Schematics Acquired . | . . . Parts Built . | . . . Authchips . | . . . Time . | . . . Total Part Build Rating . | . . . Part Studies Acquired . | . . . Parts Repaired . | . . . Time . | . . . Parts Recycled . | . . . Recycled Matter . | . . . Retrieved Matter . | . . . Retrieved Components . | . . . Parts Scanalyzed . | . . . Part Schematics Acquired . | . . . Parts Damaged . | . . . Bothacking | -11 -10 -10 ------------ Run | Yrd Mat Min Used RIF Installer . | . . . Robots Hacked . | . . . Non-combat . | . . . Combat . | . . . Robot Hacks Applied . | . . . Relay Couplers Released . | . . . Fabnet Peak Effective % . | . . . Robots Rewired . | . . . Allies Hacked . | . . . Hacks Repelled . | . . . Allies | -11 -10 -10 -------- Run | Yrd Mat Min Total Allies . | . . . Largest Group . | . . . Highest-Rated Group . | . . . Highest-Rated Ally . | . . . Total Orders . | . . . Ally Attacks . | . . . Total Damage . | . . . Kills . | . . . Allies Corrupted . | . . . Allies Melted . | . . . Intel | -11 -10 -10 ------- Run | Yrd Mat Min Active Infowar (turns) . | . . . Robot Analysis Total . | . . . Derelict Logs Recovered . | . . . Drone Launches . | . . . Drone Recoveries . | . . . Exploration | -11 -10 -10 ------------- Run | Yrd Mat Min Turns Passed 538 | 68 329 141 Spaces Moved 374 | 51 243 80 Core 8 | 8 . . Treads . | . . . Legs 326 | 43 243 40 Wheels 40 | . . 40 Hover . | . . . Flight . | . . . Fastest Speed 50 | 50 120 100 Average Speed 116 | 109 120 110 Slowest Speed 120 | 120 120 120 Overloaded Moves . | . . . Propulsion Burnouts . | . . . Robots Hopped . | . . . Potential Cave-ins . | . . . Cave-ins Triggered . | . . . Exploration Rate (%) 15 | 4 24 17 Regions Visited 2 Branch Regions 1 Pre-discovered Areas . | . . . Known Exits Taken . | . . . Unknown Exits Taken 2 | 1 1 . Scrap Searched . | . . . Spaces Dug . | . . . Terrain Destroyed 3 | . 3 . Melee . | . . . Projectile . | . . . AOE 3 | . 3 . Terrain Rammed . | . . . Walls Destroyed . | . . . Machines Disabled . | . . . Actions | -11 -10 -10 --------- Run | Yrd Mat Min Total 430 | 61 266 103 Wait 1 | . 1 . Move 372 | 50 242 80 Hop . | . . . Pick Up 12 | 5 7 . Fast Attach 6 | 4 1 1 Attach 7 | 2 2 3 Detach 2 | . 2 . Swap . | . . . Drop 2 | . 2 . Fire 26 | . 8 18 Melee . | . . . Ram 1 | . . 1 Kick 1 | . 1 . Crush . | . . . Escape Stasis . | . . . Rewire . | . . . Trap . | . . . Miscellaneous . | . . . Route ------- -11/Scrapyard -10/Materials -10/Mines (discovered 1 exit: [*Mat]) History --------- Turn | Location | Event 9 | -11/Scrapyard | Discovered new exit (range 16) 69 | -11/Scrapyard | Entered Materials 131 | -10/Materials | Discovered new exit (range 11) 309 | -10/Materials | Build established: Mutant 398 | -10/Materials | Entered Mines 431 | -10/Mines | Assembled infested the area 471 | -10/Mines | Core integrity fell below 50% 503 | -10/Mines | Lost 5 parts (1p1n1u2w) 520 | -10/Mines | Discovered new exit (range 11) 526 | -10/Mines | Core integrity fell below 20% 539 | -10/Mines | Destroyed by as-83977 with Assembled Maul Last Messages --------------- 00496_ The unstable cave ceiling collapses. 00496_ Acquired 10 matter. 00498_ The unstable cave ceiling collapses. 00511_ System corrupted: Energy discharge (-21). 00520_ EXIT=FOUND 00527_ as-09057 destroyed. 00527_ Switching to secondary target: as-68853. 00529_ R-06 Scavenger collects Lgt. Ion Engine. 00529_ Com. Wheel destroyed. 00529_ System corrupted by crushing effect (+3). 00530_ Destroyed Asb. Hover Unit. 00530_ Com. Wheel destroyed. 00532_ Imp. EM Shotgun destroyed. 00532_ R-06 Scavenger collects Sml. Storage Unit. 00534_ as-68853 destroyed. 00535_ Knocked back. 00535_ R-06 Scavenger collects Sml. Storage Unit. 00538_ R-06 Scavenger collects Com. Wheel. Map ----- +----------------------------------------------------+ | ??????????????????????????????????? | | ??????????????????????????????????? | | ??????????????????????????????????? | | ??????????????????????????????????? | | ??????????????????????????????????? | | ??????????????????????????????????? | | ??????????????????????????????????? | | ??????????????????????????????????? | | ??????????????????????????????????? | | ????????????????????????#?????????? | | ????????????????????????!###??????? | | ????????????????????????!% ??????? | | ???????????????????????? r ??????? | | ????????????????????????! ??????? | | ????????????????????????%